Workbook

Sheet Sheet1
A1: 贵州省第二人民医院2023年公开招聘事业编制工作人员面试及总成绩公示
A2: 序号 | B2: 姓名 | C2: 准考证号 | D2: 报考岗位名称 | E2: 笔试成绩 | F2: 笔试折算后成绩（40%） | G2: 面试成绩 | H2: 面试折算后成绩（60%） | I2: 总成绩 | J2: 是否进入体检 | K2: 备注
A3: 1 | B3: 王媛 | C3: 52010700124 | D3: 消化内科医师 | E3: 73.50 | F3: 29.40 | G3: 74.33 | H3: =G3*0.6 -> 44.60 | I3: 74.00 | J3: 是
A4: 2 | B4: 邓悦 | C4: 52010700120 | D4: 消化内科医师 | E4: 71.00 | F4: 28.40 | G4: 缺考 | H4: 缺考 | I4: 缺考 | J4: 否
A5: 3 | B5: 张之丽 | C5: 52010700119 | D5: 消化内科医师 | E5: 69.00 | F5: 27.60 | G5: 缺考 | H5: 缺考 | I5: 缺考 | J5: 否
A6: 4 | B6: 王艳 | C6: 52010700314 | D6: 呼吸内科医师 | E6: 65.00 | F6: 26.00 | G6: 71.67 | H6: =G6*0.6 -> 43.00 | I6: 69.00 | J6: 是
A7: 5 | B7: 王英 | C7: 52010700302 | D7: 呼吸内科医师 | E7: 63.50 | F7: 25.40 | G7: 70 | H7: =G7*0.6 -> 42.00 | I7: 67.40 | J7: 否
A8: 6 | B8: 夏扬 | C8: 52010700308 | D8: 呼吸内科医师 | E8: 67.50 | F8: 27.00 | G8: 缺考 | H8: 缺考 | I8: 缺考 | J8: 否
A9: 7 | B9: 刘贵先 | C9: 52010703705 | D9: 肾内科医师 | E9: 68.00 | F9: 27.20 | G9: 70 | H9: =G9*0.6 -> 42.00 | I9: 69.20 | J9: 是
A10: 8 | B10: 张瑶 | C10: 52010703707 | D10: 肾内科医师 | E10: 65.00 | F10: 26.00 | G10: 71.67 | H10: =G10*0.6 -> 43.00 | I10: 69.00 | J10: 否
A11: 9 | B11: 王淼 | C11: 52010703703 | D11: 肾内科医师 | E11: 76.00 | F11: 30.40 | G11: 缺考 | H11: 缺考 | I11: 缺考 | J11: 否
A12: 10 | B12: 廖刊 | C12: 52010703716 | D12: 神经外科医师 | E12: 83.00 | F12: 33.20 | G12: 74.33 | H12: =G12*0.6 -> 44.60 | I12: 77.80 | J12: 是
A13: 11 | B13: 桂儒刚 | C13: 52010703712 | D13: 神经外科医师 | E13: 68.00 | F13: 27.20 | G13: 76.33 | H13: =G13*0.6 -> 45.80 | I13: 73.00 | J13: 否
A14: 12 | B14: 田新新 | C14: 52010703709 | D14: 神经外科医师 | E14: 71.00 | F14: 28.40 | G14: 72.33 | H14: =G14*0.6 -> 43.40 | I14: 71.80 | J14: 否
A15: 13 | B15: 欧祥琴 | C15: 52010704002 | D15: 妇产科医师 | E15: 64.50 | F15: 25.80 | G15: 76 | H15: =G15*0.6 -> 45.60 | I15: 71.40 | J15: 是
A16: 14 | B16: 肖艳菲 | C16: 52010704001 | D16: 妇产科医师 | E16: 55.50 | F16: 22.20 | G16: 77.67 | H16: =G16*0.6 -> 46.60 | I16: 68.80 | J16: 否
A17: 15 | B17: 段周蓓 | C17: 52010704006 | D17: 妇产科医师 | E17: 67.00 | F17: 26.80 | G17: 缺考 | H17: 缺考 | I17: 缺考 | J17: 否
A18: 16 | B18: 卢昌鹏 | C18: 52010703723 | D18: 耳鼻喉科医师 | E18: 82.00 | F18: 32.80 | G18: 75.17 | H18: =G18*0.6 -> 45.10 | I18: 77.90 | J18: 是
A19: 17 | B19: 张玲 | C19: 52010703725 | D19: 耳鼻喉科医师 | E19: 74.50 | F19: 29.80 | G19: 72 | H19: =G19*0.6 -> 43.20 | I19: 73.00 | J19: 是
A20: 18 | B20: 朱穆玛 | C20: 52010703722 | D20: 耳鼻喉科医师 | E20: 68.00 | F20: 27.20 | G20: 74.33 | H20: =G20*0.6 -> 44.60 | I20: 71.80 | J20: 否
A21: 19 | B21: 龙琼 | C21: 52010703726 | D21: 耳鼻喉科医师 | E21: 66.00 | F21: 26.40 | G21: 73 | H21: =G21*0.6 -> 43.80 | I21: 70.20 | J21: 否
A22: 20 | B22: 张元霞 | C22: 52010703717 | D22: 耳鼻喉科医师 | E22: 66.00 | F22: 26.40 | G22: 缺考 | H22: 缺考 | I22: 缺考 | J22: 否
A23: 21 | B23: 刘松洋 | C23: 52010703721 | D23: 耳鼻喉科医师 | E23: 62.50 | F23: 25.00 | G23: 缺考 | H23: 缺考 | I23: 缺考 | J23: 否
A24: 22 | B24: 彭兴鑫 | C24: 52010703724 | D24: 耳鼻喉科医师 | E24: 62.50 | F24: 25.00 | G24: 缺考 | H24: 缺考 | I24: 缺考 | J24: 否
A25: 23 | B25: 袁丽 | C25: 52010704007 | D25: 眼科医师1 | E25: 57.50 | F25: 23.00 | G25: 74.17 | H25: =G25*0.6 -> 44.50 | I25: 67.50 | J25: 是
A26: 24 | B26: 郭永盛 | C26: 52010704008 | D26: 眼科医师1 | E26: 55.50 | F26: 22.20 | G26: 75 | H26: =G26*0.6 -> 45.00 | I26: 67.20 | J26: 否
A27: 25 | B27: 宋兰兰 | C27: 52010704010 | D27: 眼科医师1 | E27: 55.00 | F27: 22.00 | G27: 72.67 | H27: =G27*0.6 -> 43.60 | I27: 65.60 | J27: 否
A28: 26 | B28: 周娜 | C28: 52010700211 | D28: 麻醉科医师 | E28: 70.50 | F28: 28.20 | G28: 75 | H28: =G28*0.6 -> 45.00 | I28: 73.20 | J28: 是
A29: 27 | B29: 陈筑梅 | C29: 52010700202 | D29: 麻醉科医师 | E29: 72.50 | F29: 29.00 | G29: 73 | H29: =G29*0.6 -> 43.80 | I29: 72.80 | J29: 否
A30: 28 | B30: 高榜俊 | C30: 52010700228 | D30: 麻醉科医师 | E30: 71.00 | F30: 28.40 | G30: 缺考 | H30: 缺考 | I30: 缺考 | J30: 否
A31: 29 | B31: 常吟吟 | C31: 52010703903 | D31: 感染科医师 | E31: 82.00 | F31: 32.80 | G31: 75 | H31: =G31*0.6 -> 45.00 | I31: 77.80 | J31: 是
A32: 30 | B32: 叶小艳 | C32: 52010703901 | D32: 感染科医师 | E32: 69.00 | F32: 27.60 | G32: 72.67 | H32: =G32*0.6 -> 43.60 | I32: 71.20 | J32: 否
A33: 31 | B33: 安婷婷 | C33: 52010703907 | D33: 感染科医师 | E33: 60.00 | F33: 24.00 | G33: 缺考 | H33: 缺考 | I33: 缺考 | J33: 否
A34: 32 | B34: 杜昕星 | C34: 52010703805 | D34: 普通精神科（男病区）医师 | E34: 61.00 | F34: 24.40 | G34: 74.5 | H34: =G34*0.6 -> 44.70 | I34: 69.10 | J34: 是
A35: 33 | B35: 全永素 | C35: 52010703802 | D35: 普通精神科（男病区）医师 | E35: 58.00 | F35: 23.20 | G35: 74.33 | H35: 44.60 | I35: 67.80 | J35: 否
A36: 34 | B36: 杨菊英 | C36: 52010703808 | D36: 普通精神科（女病区）医师 | E36: 86.00 | F36: 34.40 | G36: 73.33 | H36: 44.00 | I36: 78.40 | J36: 是
A37: 35 | B37: 黄浩 | C37: 52010703807 | D37: 普通精神科（女病区）医师 | E37: 56.00 | F37: 22.40 | G37: 76 | H37: 45.60 | I37: 68.00 | J37: 否
A38: 36 | B38: 肖玉 | C38: 52010703810 | D38: 老年精神科医师 | E38: 77.00 | F38: 30.80 | G38: 72 | H38: 43.20 | I38: 74.00 | J38: 是
A39: 37 | B39: 王蓉 | C39: 52010703812 | D39: 老年精神科医师 | E39: 69.00 | F39: 27.60 | G39: 71.33 | H39: 42.80 | I39: 70.40 | J39: 否
A40: 38 | B40: 杨碧云 | C40: 52010703811 | D40: 老年精神科医师 | E40: 65.00 | F40: 26.00 | G40: 73 | H40: 43.80 | I40: 69.80 | J40: 否
A41: 39 | B41: 安小娟 | C41: 52010703910 | D41: 临床心理科医师 | E41: 75.00 | F41: 30.00 | G41: 74 | H41: 44.40 | I41: 74.40 | J41: 是
A42: 40 | B42: 郑佳妮 | C42: 52010703911 | D42: 临床心理科医师 | E42: 59.00 | F42: 23.60 | G42: 70.33 | H42: 42.20 | I42: 65.80 | J42: 否
A43: 41 | B43: 陈华敏 | C43: 52010703909 | D43: 临床心理科医师 | E43: 65.00 | F43: 26.00 | G43: 缺考 | H43: 缺考 | I43: 缺考 | J43: 否
A44: 42 | B44: 吴媛 | C44: 52010700410 | D44: 超声科医师 | E44: 76.00 | F44: 30.40 | G44: 75.67 | H44: =G44*0.6 -> 45.40 | I44: 75.80 | J44: 是
A45: 43 | B45: 张慧 | C45: 52010700414 | D45: 超声科医师 | E45: 67.00 | F45: 26.80 | G45: 73.33 | H45: =G45*0.6 -> 44.00 | I45: 70.80 | J45: 否
A46: 44 | B46: 毛章啟 | C46: 52010700404 | D46: 超声科医师 | E46: 66.00 | F46: 26.40 | G46: 缺考 | H46: 缺考 | I46: 缺考 | J46: 否
A47: 45 | B47: 张琴 | C47: 52010703912 | D47: 影像科医师 | E47: 65.50 | F47: 26.20 | G47: 缺考 | H47: 缺考 | I47: 缺考 | J47: 否
A48: 46 | B48: 吴宇雪 | C48: 52010702206 | D48: 护理人员1 | E48: 65.00 | F48: 26.00 | G48: 74.33 | H48: =G48*0.6 -> 44.60 | I48: 70.60 | J48: 是
A49: 47 | B49: 梅小红 | C49: 52010702204 | D49: 护理人员1 | E49: 65.00 | F49: 26.00 | G49: 70.33 | H49: 42.20 | I49: 68.20 | J49: 否
A50: 48 | B50: 胡玲 | C50: 52010702205 | D50: 护理人员1 | E50: 61.00 | F50: 24.40 | G50: 71 | H50: 42.60 | I50: 67.00 | J50: 否
A51: 49 | B51: 刘莉苹 | C51: 52010701429 | D51: 护理人员2 | E51: 75.00 | F51: 30.00 | G51: 74.33 | H51: 44.60 | I51: 74.60 | J51: 是
A52: 50 | B52: 吴桃 | C52: 52010700903 | D52: 护理人员2 | E52: 73.00 | F52: 29.20 | G52: 73 | H52: 43.80 | I52: 73.00 | J52: 是
A53: 51 | B53: 赵露瑶 | C53: 52010701723 | D53: 护理人员2 | E53: 73.00 | F53: 29.20 | G53: 71.67 | H53: 43.00 | I53: 72.20 | J53: 否
A54: 52 | B54: 毛福满 | C54: 52010702009 | D54: 护理人员2 | E54: 69.00 | F54: 27.60 | G54: 74.33 | H54: 44.60 | I54: 72.20 | J54: 否
A55: 53 | B55: 翟渟渟 | C55: 52010701014 | D55: 护理人员2 | E55: 74.00 | F55: 29.60 | G55: 70.67 | H55: 42.40 | I55: 72.00 | J55: 否
A56: 54 | B56: 张艳 | C56: 52010700728 | D56: 护理人员2 | E56: 69.00 | F56: 27.60 | G56: 73.33 | H56: 44.00 | I56: 71.60 | J56: 否
A57: 55 | B57: 樊静 | C57: 52010701715 | D57: 护理人员2 | E57: 71.00 | F57: 28.40 | G57: 71 | H57: 42.60 | I57: 71.00 | J57: 否
A58: 56 | B58: 周梓涵 | C58: 52010700725 | D58: 护理人员2 | E58: 69.00 | F58: 27.60 | G58: 72 | H58: 43.20 | I58: 70.80 | J58: 否
A59: 57 | B59: 杨芳媛 | C59: 52010700506 | D59: 预防保健科工作人员 | E59: 78.00 | F59: 31.20 | G59: 71 | H59: 42.60 | I59: 73.80 | J59: 是
A60: 58 | B60: 佟黎 | C60: 52010700512 | D60: 预防保健科工作人员 | E60: 56.00 | F60: 22.40 | G60: 73 | H60: 43.80 | I60: 66.20 | J60: 否
A61: 59 | B61: 曹俊霞 | C61: 52010700515 | D61: 预防保健科工作人员 | E61: 54.00 | F61: 21.60 | G61: 71.5 | H61: 42.90 | I61: 64.50 | J61: 否
A62: 60 | B62: 廖永娥 | C62: 52010702303 | D62: 科研科工作人员 | E62: 69.00 | F62: 27.60 | G62: 71.67 | H62: 43.00 | I62: 70.60 | J62: 是
A63: 61 | B63: 莫仁开 | C63: 52010702424 | D63: 科研科工作人员 | E63: 67.00 | F63: 26.80 | G63: 72.83 | H63: 43.70 | I63: 70.50 | J63: 否
A64: 62 | B64: 孙建梅 | C64: 52010702509 | D64: 科研科工作人员 | E64: 66.00 | F64: 26.40 | G64: 73.5 | H64: 44.10 | I64: 70.50 | J64: 否
A65: 63 | B65: 安旭 | C65: 52010702408 | D65: 科研科工作人员 | E65: 66.00 | F65: 26.40 | G65: 72.83 | H65: 43.70 | I65: 70.10 | J65: 否
A66: 64 | B66: 王启益 | C66: 52010702319 | D66: 科研科工作人员 | E66: 66.00 | F66: 26.40 | G66: 72.5 | H66: 43.50 | I66: 69.90 | J66: 否
A67: 65 | B67: 张赟 | C67: 52010702615 | D67: 内分泌科技师 | E67: 76.50 | F67: 30.60 | G67: 76 | H67: 45.60 | I67: 76.20 | J67: 是
A68: 66 | B68: 杨棋萍 | C68: 52010702603 | D68: 内分泌科技师 | E68: 53.00 | F68: 21.20 | G68: 71 | H68: 42.60 | I68: 63.80 | J68: 否
A69: 67 | B69: 李兴会 | C69: 52010702610 | D69: 内分泌科技师 | E69: 57.50 | F69: 23.00 | G69: 缺考 | H69: 缺考 | I69: 缺考 | J69: 否
A70: 68 | B70: 吴玉婷 | C70: 52010702716 | D70: 院办工作人员 | E70: 79.00 | F70: 31.60 | G70: 75.67 | H70: =G70*0.6 -> 45.40 | I70: 77.00 | J70: 是
A71: 69 | B71: 张婷 | C71: 52010702930 | D71: 院办工作人员 | E71: 59.00 | F71: 23.60 | G71: 76 | H71: =G71*0.6 -> 45.60 | I71: 69.20 | J71: 否
A72: 70 | B72: 徐佳怡 | C72: 52010703113 | D72: 院办工作人员 | E72: 57.00 | F72: 22.80 | G72: 缺考 | H72: 缺考 | I72: 缺考 | J72: 否
A73: 71 | B73: 皮晓宇 | C73: 52010702826 | D73: 宣传科党务宣传工作人员 | E73: 61.00 | F73: 24.40 | G73: 79.33 | H73: =G73*0.6 -> 47.60 | I73: 72.00 | J73: 是
A74: 72 | B74: 罗驰 | C74: 52010703517 | D74: 宣传科党务宣传工作人员 | E74: 60.00 | F74: 24.00 | G74: 74.67 | H74: 44.80 | I74: 68.80 | J74: 否
A75: 73 | B75: 项思怡 | C75: 52010703301 | D75: 宣传科党务宣传工作人员 | E75: 57.00 | F75: 22.80 | G75: 76.33 | H75: 45.80 | I75: 68.60 | J75: 否
